Cogmind - Beta 16.1 @@@ ROGUE MODE // 2026.03.13 @ 19:45:59 Player: Marf Result: Destroyed by G3-USM(z) with Zionite Laser-S Performance ------------- Evolutions (1) 500 Regions Visited (6) 1200 Robots Destroyed (17) 85 Value Destroyed (507) 507 Prototype IDs (2) 40 Alien Tech Used (0) 0 Bonus (1800) 1800 TOTAL SCORE: 4132 Bonus ------- Pacifist 200 Met Imprinter 300 Was Imprinted 300 Destroyed Z-Imprinter 1000 Cogmind --------- Core Integrity 0/400 Matter 105/300 Energy 250/250 System Corruption 0% Temperature Cool (18) Movement Walking (120) Location -7/Deep Caves Parts ------- > --- POWER (2) -------- Ion Engine > --- PROPULSION (2) --- Carbon-fiber Leg > --- UTILITY (3) ------ Light Armor Plating Hacking Drone Bay (1/1) > --- WEAPON (2) ------- Datajack CR-A16's Pointy Stick > --- INVENTORY (5) ---- Small Storage Unit Terrain Scanner Improved Terrain Scan Processor Peak State ------------ > --- POWER ------------ Ion Engine Improved Ion Engine > --- PROPULSION ------- Carbon-fiber Leg Improved Titanium Leg > --- UTILITY ---------- Small Storage Unit 0b10 Decoder Chip [Generic] Hacking Drone Bay > --- WEAPON ----------- High-powered Shotgun RU-N14's Throwing Claymores > --- INVENTORY -------- Terrain Scanner Improved Terrain Scan Processor Light Armor Plating Light Armor Plating Hardened Light Armor Plating High-powered Shotgun Heavy Rocket Launcher Datajack [Rating: 36] Favorites ----------- Power Ion Engine Engine Ion Engine Propulsion Carbon-fiber Leg Treads Light Treads Leg Carbon-fiber Leg Utility Small Storage Unit Device Hacking Drone Bay Storage Small Storage Unit Processor 0b10 Decoder Chip [Generic] Protection Light Armor Plating Weapon High-powered Shotgun Ballistic Gun High-powered Shotgun Launcher Heavy Rocket Launcher Special Weapon RU-N14's Throwing Claymores Piercing Weapon CR-A16's Pointy Stick Special Melee Weapon Datajack Build | -11 -10 -10 -9 -9 -7 -7 ------- Run | Yrd Mat Min Mat Min Zio Dee Slots Evolved 2 | . . . 2 . . . Power 1 | . . . 1 . . . Propulsion . | . . . . . . . Utility 1 | . . . 1 . . . Weapon . | . . . . . . . Parts Attached 37 | 9 . 1 16 4 4 3 Power 4 | 1 . . 3 . . . Engine 4 | 1 . . 3 . . . Core . | . . . . . . . Reactor . | . . . . . . . Propulsion 10 | 4 . . 3 2 1 . Treads 2 | 2 . . . . . . Leg 8 | 2 . . 3 2 1 . Wheel . | . . . . . . . Hover . | . . . . . . . Flight . | . . . . . . . Utility 13 | 1 . 1 6 2 2 1 Device 2 | . . . 1 . 1 . Storage 2 | 1 . 1 . . . . Processor 3 | . . . 2 . 1 . Hackware . | . . . . . . . Protection 6 | . . . 3 2 . 1 Artifact . | . . . . . . . Weapon 10 | 3 . . 4 . 1 2 Energy Gun . | . . . . . . . Energy Cannon . | . . . . . . . Ballistic Gun 5 | 3 . . 2 . . . Ballistic Cannon . | . . . . . . . Launcher 1 | . . . . . . 1 Special Weapon 1 | . . . . . 1 . Impact Weapon . | . . . . . . . Slashing Weapon . | . . . . . . . Piercing Weapon 1 | . . . . . . 1 Special Melee Weapon 2 | . . . 2 . . . Unidentified Prototypes 2 | . . . . . 2 . Parts Lost 9 | . . . 3 . . 6 Power 3 | . . . 2 . . 1 Propulsion 1 | . . . . . . 1 Utility 3 | . . . 1 . . 2 Weapon 2 | . . . . . . 2 Highest Loss Streak 2 | . . . 2 . . 2 To Critical Strikes . | . . . . . . . Average Backups 6 | . . 2 3 4 7 6 Power . | . . 1 . . . . Propulsion . | . . . . . . . Utility 3 | . . 1 2 2 4 4 Weapon 1 | . . . . . 1 1 Tool/Special . | . . . . . . . Unused Backups 3 | . . . 1 . 1 1 Power . | . . . . . . . Propulsion . | . . . . . . . Utility 3 | . . . 1 . 1 1 Weapon . | . . . . . . . Tool/Special . | . . . . . . . Average Slot Usage (%) 98 | . 85 100 97 100 100 91 Engine 20 | . 14 14 21 22 22 17 Leg 22 | . 28 28 21 22 22 22 Device 2 | . . . . . 1 11 Storage 11 | . 14 28 12 11 11 9 Processor 7 | . . . 3 . 9 6 Protection 10 | . . . 15 22 10 6 Ballistic Gun 16 | . 28 28 18 22 16 6 Special Weapon 4 | . . . . . 5 5 Peak Build Rating 36 | 6 6 7 17 18 36 36 Average Rating 23 | 4 6 7 13 17 26 30 On Entrance 12 | . 6 6 7 17 18 36 Avg Prop Armor Cover (%) . | . . . . . . . Naked Turns . | . . . . . . . Heaviest Build 33 | 13 12 14 33 31 31 29 Greatest Support 40 | 40 20 20 26 30 35 35 Greatest Overweight (x) 2 | . . . 2 1 . 1 Average Overweight (x) . | . . . . . . . Largest Inventory Capacity 8 | 8 8 8 8 8 8 8 Average Capacity 7 | 6 8 8 8 8 8 7 Most Carried 8 | 4 3 5 6 6 8 8 Average Carried 6 | . . 2 3 4 7 6 Final Capacity 8 | 8 8 8 8 8 8 5 Final Carried 8 | . 3 5 4 5 8 3 Class Distribution -------------------- 85% | Mutant 14% | Scavenger-Mutant Dominant Class ---------------- Mutant | -10/Materials Mutant | -10/Mines Mutant | -9/Materials Scavenger-Mutant | -9/Mines Mutant | -7/Zion Mutant | -7/Deep Caves Resources | -11 -10 -10 -9 -9 -7 -7 ----------- Run | Yrd Mat Min Mat Min Zio Dee Matter Collected 1008 | 188 60 271 378 76 30 5 Remotely . | . . . . . . . Salvage Created 469 | . . 30 323 52 . 64 Parts 30 | . . . 25 2 . 3 Haulers Intercepted . | . . . . . . . Recyclers Shooed 1 | . . . 1 . . . Parts Field Recycled . | . . . . . . . Retrieved Matter . | . . . . . . . Parts Self-Destructed 3 | . . . . . 3 . Prevented . | . . . . . . . Parts Restored . | . . . . . . . Kills | -11 -10 -10 -9 -9 -7 -7 ------- Run | Yrd Mat Min Mat Min Zio Dee Combat Hostiles Destroyed 17 | . . 2 10 1 . 4 Guns 13 | . . 2 10 1 . . AOE 4 | . . . . . . 4 Classes Destroyed 8 | . . 1 6 . . 1 Worker 1 | . . . 1 . . . Builder 1 | . . . 1 . . . Swarmer 3 | . . . 3 . . . Grunt 5 | . . . 5 . . . Duelist 1 | . . . 1 . . . Sentry 2 | . . . 1 1 . . Z-Light 3 | . . . . . . 3 Assembled 2 | . . 2 . . . . Best Kill Streak 4 | . . 2 4 1 . 3 Combat Bots Only 4 | . . 2 4 1 . 3 Max Kills in Single Turn 2 | . . 1 2 1 . 1 Gunslinging . | . . . . . . . Exploded 1 | . . . . . . 1 Melee . | . . . . . . . Uniques/NPCs Destroyed 1 | . . . . . . 1 Z-Imprinter (-7/Deep Caves) Combat | -11 -10 -10 -9 -9 -7 -7 -------- Run | Yrd Mat Min Mat Min Zio Dee Hostile Shots Fired 164 | . . 16 88 . . 60 Missed 44 | . . 2 19 . . 23 Hits 120 | . . 14 69 . . 37 Melee 5 | . . . 5 . . . Projectile 115 | . . 14 64 . . 37 Critical Strikes 4 | . . . 4 . . . Damage Taken 2246 | . . 196 916 . . 1134 Core 507 | . . 80 149 . . 278 Absorbed by Shields . | . . . . . . . Core Remaining (%) 84 | 100 . 68 . . . . Volleys Fired 65 | . 1 12 39 1 . 12 Largest 2 | . 2 2 2 2 . 1 Hottest 50 | . 40 40 50 50 . 39 Shots Fired 109 | . 2 24 69 2 . 12 Gun 97 | . 2 24 69 2 . . Cannon . | . . . . . . . Launcher 10 | . . . . . . 10 Special 2 | . . . . . . 2 Kinetic 97 | . 2 24 69 2 . . Thermal . | . . . . . . . Explosive 12 | . . . . . . 12 Electromagnetic . | . . . . . . . Robot Hit Streak 7 | . 1 3 6 2 . 7 Robot Miss Streak 7 | . 1 3 7 3 . 3 Penetration Max . | . . . . . . . Secondary Targets 3 | . . . 3 . . . Max Gunslinging Chain 1 | . . . 1 . . . Shots Hit Robots 68 | . 1 11 49 1 . 6 Core Hits 45 | . . 4 25 1 . 15 Critical Kills 1 | . . . . 1 . . Critical Parts Destroyed . | . . . . . . . Critical Strikes 1 | . . . . 1 . . Destroy 1 | . . . . 1 . . Melee Attacks 10 | . . . 7 . 1 2 Impact . | . . . . . . . Slashing . | . . . . . . . Piercing . | . . . . . . . Sneak Attacks 6 | . . . 5 . . 1 Combat Hostiles . | . . . . . . . Follow-up Attacks . | . . . . . . . Damage Inflicted 1831 | . 9 90 834 30 . 868 Guns 951 | . 9 81 831 30 . . Cannons . | . . . . . . . Explosions 838 | . . . . . . 838 Melee . | . . . . . . . Ramming 12 | . . 9 3 . . . Kinetic 951 | . 9 81 831 30 . . Thermal . | . . . . . . . Explosive 838 | . . . . . . 838 Electromagnetic . | . . . . . . . Impact . | . . . . . . . Slashing 30 | . . . . . . 30 Piercing . | . . . . . . . Highest Corruption . | . . . . . . . Average Corruption . | . . . . . . . Corruption Purged . | . . . . . . . Corruption Blocked . | . . . . . . . Overload Shots . | . . . . . . . Overflow Damage 66 | . . . . . . 66 Projectiles . | . . . . . . . Explosions 66 | . . . . . . 66 Melee . | . . . . . . . Knockbacks . | . . . . . . . Impact . | . . . . . . . Kinetic . | . . . . . . . Secondary . | . . . . . . . Self-Inflicted Damage 14 | . . . . . . 14 Shots 1 | . . . . . . 1 Rammed . | . . . . . . . Targets Rammed 2 | . . 1 1 . . . Kicked 2 | . . 1 1 . . . Crushed . | . . . . . . . Highest Temperature 249 | . . . 249 21 . 86 Average Temperature 77 | . . . 86 12 . 38 Received Heat Transfer 624 | . . . 291 . . 333 Effects 1 | . . . 1 . . . Energy Bleed 1 | . . . 1 . . . Siege Activations . | . . . . . . . Martial Activations . | . . . . . . . Shielding Activations . | . . . . . . . Robots Disrupted . | . . . . . . . Combat Hostiles . | . . . . . . . Robots Corrupted . | . . . . . . . Combat Hostiles . | . . . . . . . Parts Fried . | . . . . . . . Impact Corruptions . | . . . . . . . Robots Melted . | . . . . . . . Combat Hostiles . | . . . . . . . Parts Melted . | . . . . . . . Heat Transferred . | . . . . . . . Parts Sabotaged . | . . . . . . . Parts Stolen . | . . . . . . . Parts Stripped . | . . . . . . . Power Chain Reactions . | . . . . . . . Alert | -11 -10 -10 -9 -9 -7 -7 ------- Run | Yrd Mat Min Mat Min Zio Dee Maximum Alert Level . | . . . . . . . Low Security (%) 100 | 100 100 100 100 100 . . Level 1 . | . . . . . . . Level 2 . | . . . . . . . Level 3 . | . . . . . . . Level 4 . | . . . . . . . Level 5 . | . . . . . . . High Security . | . . . . . . . Max Security . | . . . . . . . Peak Influence 106 | . 15 1 106 54 . . Initial 34 | . . 1 . 34 . . Average 19 | . 3 . 31 25 . . Influence Increases 341 | . 15 . 306 20 . . Destroy 0b10 Robot/C 220 | . . . 200 20 . . Destroy 0b10 Robot/NC 10 | . . . 10 . . . Destroy Leader 50 | . . . 50 . . . Destroy Structure 1 | . . . 1 . . . Lose Combat Pursuer 60 | . 15 . 45 . . . Influence Decreases 341 | . 10 5 216 110 . . Entered New Map 60 | . . 4 . 56 . . Time Decay 251 | . 10 1 186 54 . . Lost Part 30 | . . . 30 . . . Squads Dispatched 2 | . . . 2 . . . Investigation . | . . . . . . . Extermination . | . . . . . . . Reinforcement 2 | . . . 2 . . . Assault . | . . . . . . . Garrison . | . . . . . . . Intercept . | . . . . . . . Searches Triggered . | . . . . . . . Construction Impeded . | . . . . . . . Haulers Reinforced . | . . . . . . . Active Scanning Responses . | . . . . . . . Cargo Convoy Interrupts . | . . . . . . . Stealth | -11 -10 -10 -9 -9 -7 -7 --------- Run | Yrd Mat Min Mat Min Zio Dee Distress Signals 5 | . . 1 4 . . . Communications Jammed . | . . . . . . . Distress Signals . | . . . . . . . Times Spotted 37 | . 4 3 22 2 . 6 Peak Tracking Total 7 | . 3 2 7 2 . 3 Tactical Retreats 4 | . 1 . 2 . . 1 Traps | -11 -10 -10 -9 -9 -7 -7 ------- Run | Yrd Mat Min Mat Min Zio Dee Traps Triggered . | . . . . . . . Indirectly . | . . . . . . . Trap Hack Attempts 19 | . . . 19 . . . Triggered . | . . . . . . . Disarmed 2 | . . . 2 . . . Reprogrammed . | . . . . . . . Reused . | . . . . . . . Traps Extracted . | . . . . . . . Installed . | . . . . . . . Triggered . | . . . . . . . Machines | -11 -10 -10 -9 -9 -7 -7 ---------- Run | Yrd Mat Min Mat Min Zio Dee Machines Disabled 1 | . . . 1 . . . Max in Single Turn 1 | . . . 1 . . . Machines Repaired . | . . . . . . . Machines Dismantled . | . . . . . . . Machines Sabotaged . | . . . . . . . Overloaded Fab Kills . | . . . . . . . Hacking | -11 -10 -10 -9 -9 -7 -7 --------- Run | Yrd Mat Min Mat Min Zio Dee Machines Accessed . | . . . . . . . Terminals . | . . . . . . . Fabricators . | . . . . . . . Repair Stations . | . . . . . . . Recycling Units . | . . . . . . . Scanalyzers . | . . . . . . . Garrison Access . | . . . . . . . Total Hacks . | . . . . . . . Successful . | . . . . . . . Failed . | . . . . . . . Catastrophic . | . . . . . . . Database Lockouts . | . . . . . . . Manual 12 | . . . . . 12 . Terminals . | . . . . . . . Fabricators . | . . . . . . . Repair Stations . | . . . . . . . Recycling Units . | . . . . . . . Scanalyzers . | . . . . . . . Garrison Access . | . . . . . . . Terminal Hacks . | . . . . . . . Fabricator Hacks . | . . . . . . . Repair Station Hacks . | . . . . . . . Recycling Unit Hacks . | . . . . . . . Scanalyzer . | . . . . . . . Garrison Access Hacks . | . . . . . . . Unauthorized Hacks . | . . . . . . . Terminals . | . . . . . . . Fabricators . | . . . . . . . Repair Stations . | . . . . . . . Recycling Units . | . . . . . . . Scanalyzers . | . . . . . . . Garrison Access . | . . . . . . . Data Cores Recovered . | . . . . . . . Used . | . . . . . . . Hacking Detections . | . . . . . . . Full Trace Events . | . . . . . . . Feedback Events . | . . . . . . . Feedback Blocked . | . . . . . . . Robot Schematics Acquired 3 | . . . . . 3 . Robots Built . | . . . . . . . Authchips . | . . . . . . . Time . | . . . . . . . Total Robot Build Rating . | . . . . . . . Part Schematics Acquired 14 | . . . . . 14 . Parts Built . | . . . . . . . Authchips . | . . . . . . . Time . | . . . . . . . Total Part Build Rating . | . . . . . . . Part Studies Acquired . | . . . . . . . Parts Repaired . | . . . . . . . Time . | . . . . . . . Parts Recycled . | . . . . . . . Recycled Matter . | . . . . . . . Retrieved Matter . | . . . . . . . Retrieved Components . | . . . . . . . Parts Scanalyzed . | . . . . . . . Part Schematics Acquired . | . . . . . . . Parts Damaged . | . . . . . . . Bothacking | -11 -10 -10 -9 -9 -7 -7 ------------ Run | Yrd Mat Min Mat Min Zio Dee Used RIF Installer . | . . . . . . . Robots Hacked 5 | . . . 4 . . 1 Non-combat 4 | . . . 3 . . 1 Combat 1 | . . . 1 . . . Robot Hacks Applied 7 | . . . 6 . . 1 parse_system 4 | . . . 3 . . 1 no_distress 2 | . . . 2 . . . check_alert 1 | . . . 1 . . . Relay Couplers Released . | . . . . . . . Fabnet Peak Effective % . | . . . . . . . Robots Rewired . | . . . . . . . Allies Hacked . | . . . . . . . Hacks Repelled . | . . . . . . . Allies | -11 -10 -10 -9 -9 -7 -7 -------- Run | Yrd Mat Min Mat Min Zio Dee Total Allies 4 | . . . . . 4 . Largest Group 4 | . . . . . 4 3 Highest-Rated Group 153 | . . . . . 153 116 Highest-Rated Ally 41 | . . . . . 41 41 Total Orders . | . . . . . . . Ally Attacks . | . . . . . . . Total Damage . | . . . . . . . Kills . | . . . . . . . Allies Corrupted . | . . . . . . . Allies Melted . | . . . . . . . Intel | -11 -10 -10 -9 -9 -7 -7 ------- Run | Yrd Mat Min Mat Min Zio Dee Active Infowar (turns) 3031 | . . . 43 . 2710 278 Terrain 43 | . . . 43 . . . Decoding 2988 | . . . . . 2710 278 Robot Analysis Total . | . . . . . . . Derelict Logs Recovered 2 | . . 1 . . 1 . Drone Launches 2 | . . . . . 1 1 Drone Recoveries 2 | . . . . . . 2 Exploration | -11 -10 -10 -9 -9 -7 -7 ------------- Run | Yrd Mat Min Mat Min Zio Dee Turns Passed 4563 | 68 98 228 535 122 2991 521 Spaces Moved 2972 | 43 78 160 201 76 2039 375 Core 5 | 5 . . . . . . Treads 2 | 2 . . . . . . Legs 2965 | 36 78 160 201 76 2039 375 Wheels . | . . . . . . . Hover . | . . . . . . . Flight . | . . . . . . . Fastest Speed 50 | 50 120 120 120 120 120 125 Average Speed 127 | 113 120 120 175 141 124 125 Slowest Speed 260 | 160 120 120 260 190 125 190 Overloaded Moves . | . . . . . . . Propulsion Burnouts . | . . . . . . . Robots Hopped 1 | . . . . . 1 . Potential Cave-ins . | . . . . . . . Cave-ins Triggered . | . . . . . . . Exploration Rate (%) 35 | 3 18 42 25 23 95 40 Regions Visited 6 Branch Regions 4 Pre-discovered Areas . | . . . . . . . Known Exits Taken 1 | . . 1 . . . . Unknown Exits Taken 5 | 1 1 . 1 1 1 . Scrap Searched 5 | . . 1 . . 4 . Spaces Dug . | . . . . . . . Terrain Destroyed 98 | . . . . . . 98 Melee . | . . . . . . . Projectile 1 | . . . . . . 1 AOE 97 | . . . . . . 97 Terrain Rammed . | . . . . . . . Walls Destroyed . | . . . . . . . Machines Disabled . | . . . . . . . Actions | -11 -10 -10 -9 -9 -7 -7 --------- Run | Yrd Mat Min Mat Min Zio Dee Total 3627 | 63 81 176 312 89 2494 412 Wait 456 | . . . . . 439 17 Move 2964 | 42 77 159 200 75 2036 375 Hop 1 | . . . . . 1 . Pick Up 41 | 9 3 3 14 5 7 . Fast Attach . | . . . . . . . Attach 28 | 9 . 1 12 2 . 4 Detach 3 | . . . 3 . . . Swap 20 | . . . 10 2 6 2 Drop 18 | 3 . . 7 4 4 . Fire 65 | . 1 12 39 1 . 12 Melee 10 | . . . 7 . 1 2 Ram . | . . . . . . . Kick 2 | . . 1 1 . . . Crush . | . . . . . . . Escape Stasis . | . . . . . . . Rewire . | . . . . . . . Trap 19 | . . . 19 . . . Miscellaneous . | . . . . . . . Route ------- -11/Scrapyard -10/Materials (discovered 2 exits: [*Min x2]) -10/Mines (discovered 2 exits: *Mat x2) -9/Materials -9/Mines -7/Zion (discovered 2 exits: [*Dee] / [*Pro]) -7/Deep Caves History --------- Turn | Location | Event 2 | -11/Scrapyard | Met Revision 17 16 | -11/Scrapyard | Discovered new exit (range 16) 69 | -11/Scrapyard | Entered Materials 69 | -10/Materials | Discovered new exit (range 14) 70 | -10/Materials | Met a group of wandering Federalists 126 | -10/Materials | Discovered new exit (range 13) 167 | -10/Materials | Entered Mines 168 | -10/Mines | Assembled infested the area 175 | -10/Mines | Met a Derelict bent on vengeance 299 | -10/Mines | Discovered new exit (range 13) 302 | -10/Mines | Build established: Mutant 350 | -10/Mines | Identified exit to Materials 395 | -10/Mines | Entered Materials 395 | -9/Materials | Evolved 2 slots: Power x1, Utility x1 842 | -9/Materials | Discovered new exit (range 8) 930 | -9/Materials | Entered Mines 940 | -9/Mines | Joined a pair of Derelicts in attacking an 0b10 outpost 1043 | -9/Mines | A Derelict revealed a hidden shortcut to a safe place 1052 | -9/Mines | Entered Zion 1066 | -7/Zion | Build established: Scavenger-Mutant 1717 | -7/Zion | Build established: Mutant 1925 | -7/Zion | Met Imprinter 2218 | -7/Zion | Imprinted 2220 | -7/Zion | Declared Zion's savior 2467 | -7/Zion | Found Prototype Special Weapon 2469 | -7/Zion | Identified RU-N14's Throwing Claymores 3660 | -7/Zion | Given the Hacking Drone Bay 3666 | -7/Zion | Found Prototype Device 3669 | -7/Zion | Identified Hacking Drone Bay 3691 | -7/Zion | Found CR-A16's Pointy Stick 3722 | -7/Zion | Discovered new exit (range 16) 3730 | -7/Zion | Acquired unknown access codes intercepted by a Zionite 3997 | -7/Zion | Opened final containment barrier to the Deep Caves 4037 | -7/Zion | Discovered new exit (range 3) 4037 | -7/Zion | Saw the warning signs outside the Deep Caves entrance 4043 | -7/Zion | Entered Deep Caves 4043 | -7/Deep Caves | Accompanied by 5 allies 4312 | -7/Deep Caves | Attacked by Z-Imprinter 4319 | -7/Deep Caves | Core integrity fell below 50% 4326 | -7/Deep Caves | Destroyed Z-Imprinter 4500 | -7/Deep Caves | Z-Facility disabled 4507 | -7/Deep Caves | Core integrity fell below 20% 4564 | -7/Deep Caves | Destroyed by G3-USM(z) with Zionite Laser-S Last Messages --------------- 2V-ENW(z) destroyed. The unstable cave ceiling collapses. Acquired 5 matter. The unstable cave ceiling collapses. Sneak attack on OM-VI0(o). Jacked OM-VI0(o)... >>parse_system Reading system data... FS-0MB(o) is busy at the terminal. G5-3ZX(o) is busy at the terminal. Z-Facility disabled. S1-G7M(z) destroyed. Hvy. Rocket Launcher destroyed. The unstable cave ceiling collapses. Hrd. Light Armor Plating destroyed. Hacking Drone released from Hacking Drone Bay. Hacking Drone retrieved by Hacking Drone Bay (no repairs). Imp. Titanium Leg destroyed. Lgt. Armor Plating destroyed. Map ----- +----------------------------------------------------+ | | | | | | | | | | | | | | | | | | | ?????????????????????????????????????????????????? | | ####??????????????????????????????????####???????? | | ##???????????????????????????????## #####???? | | #????##???????????????????????### ##### | | ###### ##?????######?????????## | | ## # #???### ##???????## | | ##### #???????# #### | | #???????# ###??? | | #######?## ##????? | | ### # ###### ## ##?????? | | ### ############ | | " # ## ## #???# | | " ## ## # ####???# | | " #??????# ## | | " #??????# ## | | #??????# ### | | " @ # ## # #??????# #?## | | " ##### # #??????# #??## | | " ## # # #??????# #???# | | " # ### #??????# #???? | | # # ##??????# ####? | | ## ### #???????# #? | | #####?# #???????# ## ## | | #?????# ##??????# ## | | ##?????# ##?###?# #### | | ##????## ### ### ### | | " z #????# ### ## | | z #???## ### | | ##???# ## ## | | " ##????# #? | | "" ##????# #### ## | | "" ##???## ##??## # | | "" #????## ##????### # | | " #?????# #???????# ###### | | ##?????# #???????# #????? | | #??????# #???????# #????? | | " #??????# #???????# ##???? | | #?????# #???????# #???? | | #?????# ####????# #???? | | #????# #????# ##???? | | #????# #????######??? | +----------------------------------------------------+ Best States ------------- Heat Dissipation 28 Energy Generation 17 Energy Capacity 415 Matter Stores 400 Matter Capacity 400 Sight Range 16 Terrain Scan Range 14 Terrain Scan Density 85 Armor Coverage 375 Evasion (%) 55 Recoil Reduction 2 Item Schematics ----------------- Disruptor Cannon | -7/Zion | Archive Kinecellerator | -7/Zion | Archive Imp. Hacking Suite | -7/Zion | Archive Lyr. Medium Armor Plating | -7/Zion | Archive Imp. Field Recycling Unit | -7/Zion | Archive Hpw. Shock Rifle | -7/Zion | Archive Transmission Jammer | -7/Zion | Archive Lgt. Fission Core | -7/Zion | Archive Xenon Bombardment Thruster | -7/Zion | Archive Neutrino Core | -7/Zion | Archive Power Amplifier | -7/Zion | Archive Imp. Medium Armor Plating | -7/Zion | Archive Remote Datajack | -7/Zion | Archive Stasis Canceller | -7/Zion | Archive Robot Schematics ------------------ L-41 Fighter | -7/Zion | Archive T-07 Excavator | -7/Zion | Archive S-27 Virus | -7/Zion | Archive Fabricated ------------ Nothing Repaired ---------- Nothing Studied --------- None Alien Tech Used ----------------- None Achievements -------------- Adventurer Are We The Baddies? Junior Dev Robot Respite Signs Are For Wimps The One Challenges ------------ None Game ------ Seed VortexInsulatedBrace Manual? 0 Play Time 00:54:01 Cumulative 4.6 hours Start 2026.03.13 @ 18:48:12 End 2026.03.13 @ 19:45:59 Sessions 1 Manual Loads 0 Difficulty Rogue Special Mode None Game No. 13 Rogue 13 Adventurer 0 Explorer 0 Win Type - Total 0 Types 0/0/0/0/0/0/0/0/0/0 Lore% 5 Gallery% 9 Achievement% 9 Wizard Run 0 Options --------- Layout 1 ASCII 0 Keyboard 0 Movement Mouse Keybinds 0 Fullscreen 1 Font 24/Smallcaps Map View 50x35 Zoom Use 74% Tactical HUD 0 Map Filters NONE Filters NONE Steam 1 RUN: 0a4d1daf-aa53-44ac-9a9c-7b3bc163b327